fUSD/lending_fUSD_20250519
["ID","MTS","AMOUNT","RATE_DAILY","PERIOD"]
[361623825,1747645855037,-420.0,0.00013808,2]
[361623826,1747645855046,-448.84919765,0.00013808,2]
[361623827,1747645855056,-849.5,0.00013808,2]
[361623828,1747645855065,-506.41,0.00013808,2]
[361623829,1747645855074,-579.63,0.00013808,2]
[361623830,1747645855084,-420.0,0.00013808,2]
[361623831,1747645855094,-693.76,0.00013808,2]
[361623832,1747645855103,-2318.1,0.00013808,2]
[361623833,1747645855112,-1239.07,0.00013808,2]
[361623834,1747645855121,-1014.93,0.00013808,2]
[361623835,1747645855132,-430.55872461,0.00013808,2]
[361623836,1747645855142,-6211.39,0.00013808,2]
[361623837,1747645855153,-784.23,0.00013808,2]
[361623838,1747645855163,-151.6075,0.00013808,2]
[361623839,1747645855173,-1244.87,0.00013808,2]
[361623840,1747645855182,-420.0,0.00013808,2]
[361623841,1747645855191,-592.45,0.00013808,2]
[361623842,1747645855201,-82435.65,0.00013808,2]
[361623843,1747645855210,-420.0,0.00013808,2]
[361623844,1747645855219,-10386.05,0.00013808,2]
[361623845,1747645855229,-514.14,0.00013808,2]
[361623846,1747645855238,-623.23,0.00013808,2]
[361623847,1747645855247,-420.0,0.00013808,2]
[361623848,1747645855256,-432.69,0.00013808,2]
[361623849,1747645855266,-1050.01,0.00013808,2]
[361623850,1747645855276,-624.4,0.00013808,2]
[361623851,1747645855286,-2709.03,0.00013808,2]
[361623852,1747645855295,-665.96,0.00013808,2]
[361623853,1747645855304,-2486.47,0.00013808,2]
[361623854,1747645855313,-17050.25,0.00013808,2]
[361623855,1747645855323,-866.91,0.00013808,2]
[361623856,1747645855332,-976.52,0.00013808,2]
[361623857,1747645855342,-997.78,0.00013808,2]
[361623858,1747645855351,-567.02,0.00013808,2]
[361623859,1747645855360,-420.0,0.00013808,2]
[361623860,1747645855370,-1294.4,0.00013808,2]
[361623861,1747645855379,-1091.02,0.00013808,2]
[361623862,1747645855389,-420.0,0.00013808,2]
[361623863,1747645855398,-1012.88,0.00013808,2]
[361623864,1747645855411,-543.5,0.00013808,2]
[361623865,1747645855421,-686.96,0.00013808,2]
[361623866,1747645855431,-945.54,0.00013808,2]
[361623867,1747645855441,-582.97,0.00013808,2]
[361623868,1747645855451,-420.0,0.00013808,2]
[361623869,1747645855462,-3733.69,0.00013808,2]
[361623870,1747645855471,-2294.22,0.00013808,2]
[361623871,1747645855482,-9138.2,0.00013808,2]
[361623872,1747645855491,-704.25,0.00013808,2]
[361623873,1747645855500,-420.0,0.00013808,2]
[361623874,1747645855510,-484.36,0.00013808,2]
[361623875,1747645855520,-725.61,0.00013808,2]
[361623876,1747645855529,-614.05,0.00013808,2]
[361623877,1747645855538,-687.96,0.00013808,2]
[361623878,1747645855548,-420.0,0.00013808,2]
[361623879,1747645855558,-420.0,0.00013808,2]
[361623880,1747645855567,-1148.16,0.00013808,2]
[361623881,1747645855577,-3832.04,0.00013808,2]
[361623882,1747645855586,-420.0,0.00013808,2]
[361623883,1747645855595,-420.0,0.00013808,2]
[361623884,1747645855604,-15047.48,0.00013808,2]
[361623885,1747645855613,-770.02,0.00013808,2]
[361623886,1747645855623,-6709.26,0.00013808,2]
[361623887,1747645855632,-474.8001522,0.00013808,2]
[361623888,1747645855641,-2009.09,0.00013808,2]
[361623889,1747645855650,-505.37,0.00013808,2]
[361623890,1747645855660,-438.67,0.00013808,2]
[361623891,1747645855669,-604.33,0.00013808,2]
[361623892,1747645855678,-420.0,0.00013808,2]
[361623893,1747645855687,-2061.6,0.00013808,2]
[361623894,1747645855696,-420.0,0.00013808,2]
[361623895,1747645855706,-2311.08,0.00013808,2]
[361623896,1747645855715,-3196.5,0.00013808,2]
[361623897,1747645855725,-1000.0,0.00013808,2]
[361623898,1747645855734,-1879.47,0.00013808,2]
[361623899,1747645855743,-1094.99,0.00013808,2]
[361623900,1747645855754,-965.23,0.00013808,2]
[361623901,1747645855872,-3611.11,0.00013808,2]
[361623902,1747645855882,-420.0,0.00013808,2]
[361623903,1747645855892,-1605.19,0.00013808,2]
[361623904,1747645855901,-1409.52,0.00013808,2]
[361623905,1747645855911,-738.54,0.00013808,2]
[361623906,1747645855921,-420.0,0.00013808,2]
[361623907,1747645855933,-2309.18,0.00013808,2]
[361623908,1747645855943,-420.0,0.00013808,2]
[361623909,1747645855952,-547.93,0.00013808,2]
[361623910,1747645855964,-1956.75,0.00013808,2]
[361623911,1747645855973,-1260.97,0.00013808,2]
[361623912,1747645855983,-1531.91,0.00013808,2]
[361623913,1747645855997,-420.0,0.00013808,2]
[361623914,1747645856006,-420.0,0.00013808,2]
[361623915,1747645856016,-420.0,0.00013808,2]
[361623916,1747645856025,-420.0,0.00013808,2]
[361623917,1747645856035,-420.0,0.00013808,2]
[361623918,1747645856044,-2096.44,0.00013808,2]
[361623919,1747645856054,-2096.68,0.00013808,2]
[361623920,1747645856063,-465.73,0.00013808,2]
[361623921,1747645856073,-1861.11,0.00013808,2]
[361623922,1747645856082,-570.7,0.00013808,2]
[361623923,1747645856092,-2315.48,0.00013808,2]
[361623924,1747645856101,-464.4,0.00013808,2]
[361623925,1747645856111,-973.81,0.00013808,2]
[361623926,1747645856122,-884.4,0.00013808,2]
[361623927,1747645856131,-695.7,0.00013808,2]
[361623928,1747645856141,-420.0,0.00013808,2]
[361623929,1747645856151,-508.33,0.00013808,2]
[361623930,1747645856161,-437.27,0.00013808,2]
[361623931,1747645856171,-2002.24,0.00013808,2]
[361623932,1747645856180,-1614.34,0.00013808,2]
[361623933,1747645856190,-973.73,0.00013808,2]
[361623934,1747645856200,-10387.19,0.00013808,2]
[361623935,1747645856210,-552.59,0.00013808,2]
[361623936,1747645856219,-661.99,0.00013808,2]
[361623937,1747645856229,-499.89,0.00013808,2]
[361623938,1747645856239,-477.27,0.00013808,2]
[361623939,1747645856248,-547.51,0.00013808,2]
[361623940,1747645856258,-420.0,0.00013808,2]
[361623941,1747645856268,-420.0,0.00013808,2]
[361623942,1747645856277,-420.0,0.00013808,2]
[361623943,1747645856287,-3346.09,0.00013808,2]
[361623944,1747645856297,-2023.62,0.00013808,2]
[361623945,1747645856307,-516.89,0.00013808,2]
[361623946,1747645856316,-1615.86,0.00013808,2]
[361623947,1747645856326,-420.52,0.00013808,2]
[361623948,1747645856336,-420.0,0.00013808,2]
[361623949,1747645856346,-1426.03,0.00013808,2]
[361623950,1747645856355,-862.54,0.00013808,2]
[361623951,1747645856365,-906.29,0.00013808,2]
[361623952,1747645856374,-1606.28,0.00013808,2]
[361623953,1747645856384,-1324.2,0.00013808,2]
[361623954,1747645856393,-420.0,0.00013808,2]
[361623955,1747645856403,-661.52,0.00013808,2]
[361623956,1747645856415,-538.58,0.00013808,2]
[361623957,1747645856425,-1768.46,0.00013808,2]
[361623958,1747645856434,-765.07,0.00013808,2]
[361623959,1747645856444,-2007.61,0.00013808,2]
[361623960,1747645856454,-420.0,0.00013808,2]
[361623961,1747645856465,-811.068131,0.00013808,2]
[361623962,1747645856475,-432.39819569,0.00013808,2]
[361623963,1747645856485,-330.531258,0.00013808,2]
[361623964,1747645856495,-420.0,0.00013808,2]
[361623965,1747645856505,-453.75600182,0.00013808,2]
[361623966,1747645856514,-420.0,0.00013808,2]
[361623967,1747645856525,-1010.94,0.00013808,2]
[361623968,1747645856534,-420.0,0.00013808,2]
[361623969,1747645856544,-798.68,0.00013808,2]
[361623970,1747645856553,-330.531258,0.00013808,2]
[361623971,1747645856564,-420.0,0.00013808,2]
[361623972,1747645856574,-9183.74,0.00013808,2]
[361623973,1747645856584,-420.0,0.00013808,2]
[361623974,1747645856593,-420.0,0.00013808,2]
[361623975,1747645856603,-1090.01,0.00013808,2]
[361623976,1747645856613,-429.14,0.00013808,2]
[361623977,1747645856623,-577.58,0.00013808,2]
[361623978,1747645856633,-570.11,0.00013808,2]
[361623979,1747645856643,-420.0,0.00013808,2]
[361623980,1747645856654,-420.0,0.00013808,2]
[361623981,1747645856664,-1455.4,0.00013808,2]
[361623982,1747645856674,-1369.98,0.00013808,2]
[361623983,1747645856683,-2027.76,0.00013808,2]
[361623984,1747645856693,-915.93,0.00013808,2]
[361623985,1747645856703,-7034.15,0.00013808,2]
[361623986,1747645856712,-1893.98,0.00013808,2]
[361623987,1747645856721,-151.476863,0.00013808,2]
[361623988,1747645856731,-560.46,0.00013808,2]
[361623989,1747645856742,-7033.33,0.00013808,2]
[361623990,1747645856752,-477.79,0.00013808,2]
[361623991,1747645856763,-420.0,0.00013808,2]
[361623992,1747645856773,-420.0,0.00013808,2]
[361623993,1747645856782,-779.92,0.00013808,2]
[361623994,1747645856791,-876.97,0.00013808,2]
[361623995,1747645856800,-586.69,0.00013808,2]
[361623996,1747645856810,-420.0,0.00013808,2]
[361623997,1747645856821,-2062.25,0.00013808,2]
[361623998,1747645856831,-488.14,0.00013808,2]
[361623999,1747645856840,-810.63,0.00013808,2]
[361624000,1747645856850,-4592.93,0.00013808,2]
[361624001,1747645856859,-420.0,0.00013808,2]
[361624002,1747645856869,-420.0,0.00013808,2]
[361624003,1747645856878,-420.0,0.00013808,2]
[361624004,1747645856888,-551.29,0.00013808,2]
[361624005,1747645856899,-4259.49,0.00013808,2]
[361624006,1747645856908,-971.54,0.00013808,2]
[361624007,1747645856919,-1194.14,0.00013808,2]
[361624008,1747645856928,-437.27,0.00013808,2]
[361624009,1747645856938,-915.58,0.00013808,2]
[361624010,1747645856947,-1313.77,0.00013808,2]
[361624011,1747645856956,-420.0,0.00013808,2]
[361624012,1747645856965,-488.1,0.00013808,2]
[361624013,1747645856974,-1659.81,0.00013808,2]
[361624014,1747645856984,-523.99,0.00013808,2]
[361624015,1747645856993,-589.47,0.00013808,2]
[361624016,1747645857002,-420.0,0.00013808,2]
[361624017,1747645857012,-1005.39,0.00013808,2]
[361624018,1747645857021,-2618.85,0.00013808,2]
[361624019,1747645857031,-1038.93,0.00013808,2]
[361624020,1747645857040,-1401.17,0.00013808,2]
[361624021,1747645857050,-420.0,0.00013808,2]
[361624022,1747645857059,-769.24,0.00013808,2]
[361624023,1747645857068,-4227.17,0.00013808,2]
[361624024,1747645857079,-704.03,0.00013808,2]
[361624025,1747645857088,-7761.57,0.00013808,2]
[361624026,1747645857098,-1006.46,0.00013808,2]
[361624027,1747645857107,-593.03,0.00013808,2]
[361624028,1747645857116,-12516.44,0.00013808,2]
[361624029,1747645857126,-420.0,0.00013808,2]
[361624030,1747645857135,-1067.49,0.00013808,2]
[361624031,1747645857144,-420.0,0.00013808,2]
[361624032,1747645857153,-420.0,0.00013808,2]
[361624033,1747645857162,-165.84748636,0.00013808,2]
[361624034,1747645857171,-119503.57898361,0.00013808,2]
[361624035,1747645858646,-375.23999999,0.00013698,2]
[361624036,1747645858691,-44.76000001,0.00013698,2]
[361624037,1747645858701,-885.51,0.00013698,2]
[361624038,1747645858711,-162.76,0.000137,2]
[361624039,1747645858720,-453.11,0.000137,2]
[361624040,1747645858730,-65.84118235,0.000137,2]
[361624041,1747645884872,250.0,0.0002,120]
[361624044,1747645961894,1045.29,0.00010927,2]
[361624046,1747646448023,-3630.73,0.00012659,2]
[361624047,1747646448052,-200.0,0.00012678,2]
[361624048,1747646448079,-678.23,0.00012698,2]
[361624049,1747646448107,-200.0,0.00012703,2]
[361624050,1747646448135,-2751.0,0.00012708,2]
[361624051,1747646448163,-500.0,0.00012732,2]
[361624052,1747646448191,-1200.0,0.00012817,2]
[361624053,1747646448220,-250.0,0.00012818,2]
[361624054,1747646448248,-300.0,0.00012819,2]
[361624055,1747646448275,-300.0,0.00012819,2]
[361624056,1747646448301,-1852.42,0.0001282,2]
[361624057,1747646448331,-842.09,0.00012826,2]
[361624058,1747646448362,-668.16,0.0001284,2]
[361624059,1747646448389,-486.59793831,0.00013182,2]
[361624060,1747646448417,-1045.29,0.00013191,2]
[361624061,1747646526275,500.0,0.00016,120]
[361624065,1747646644883,2980.604107,0.000139,5]
[361624066,1747646646960,2980.604107,0.0002,30]
[361624068,1747646757030,544.6995534,6.94e-05,2]
[361624069,1747646763677,263.847564,0.000139,5]
[361624070,1747646764820,2673.04069905,8e-05,2]
[361624071,1747646767105,263.847564,0.0002,30]
[361624074,1747646850351,-166.78,0.00012675,2]
[361624075,1747646850373,-830.10015253,0.00012693,2]
[361624076,1747646877670,1812.71980288,0.0001,2]
[361624079,1747646975393,239.87466372,0.00010668,2]
[361624080,1747646975414,727.40533628,0.00010668,2]
[361624083,1747647025456,333.79761732,0.00027397,120]
[361624112,1747647032388,-207.0,0.00012397,2]
[361624113,1747647032397,-108.65679212,0.00012693,2]
[361624114,1747647032444,-61.24305535,0.00012693,2]
[361624115,1747647032454,-150.0,0.00012703,2]
[361624116,1747647032463,-300.0,0.0001274,2]
[361624117,1747647032472,-446.97671829,0.0001274,2]
[361624118,1747647032483,-646.88,0.0001274,2]
[361624119,1747647032504,-106.14328171,0.0001274,2]
[361624120,1747647032513,-197.0,0.0001274,2]
[361624121,1747647032523,-150.0,0.00012741,2]
[361624122,1747647032532,-602.51136465,0.00012741,2]
[361624130,1747647038359,-981.35498393,0.00012741,2]
[361624131,1747647038523,-836.325,0.00012741,2]
[361624132,1747647038535,-2798.46951907,0.00012741,2]
[361624133,1747647038580,-404.0,0.00012741,2]
[361624177,1747647040496,-18245.18913235,0.00012741,2]
[361624178,1747647040506,-195.11,0.00012742,2]
[361624179,1747647040516,-17194.95,0.00012742,2]
[361624180,1747647040525,-3956.02,0.00012805,2]
[361624181,1747647040535,-967.28,0.00012932,2]
[361624182,1747647040544,-200.0,0.00013038,2]
[361624183,1747647040554,-500.0,0.0001326,2]
[361624184,1747647040564,-150.3,0.000133,2]
[361624185,1747647040574,-150.0,0.000133,2]
[361624186,1747647040584,-150.0,0.000133,2]
[361624187,1747647040593,-150.0,0.000133,2]
[361624188,1747647040602,-150.0,0.000133,2]
[361624189,1747647040611,-353.24,0.000133,2]
[361624190,1747647040621,-150.0,0.000133,2]
[361624191,1747647040631,-150.0,0.000133,2]
[361624192,1747647040640,-150.3,0.000133,2]
[361624193,1747647040649,-353.24,0.000133,2]
[361624194,1747647040658,-150.0,0.000133,2]
[361624195,1747647040668,-150.3,0.000133,2]
[361624196,1747647040677,-150.0,0.000133,2]
[361624197,1747647040686,-353.24,0.000133,2]
[361624198,1747647040695,-500.0,0.00013315,2]
[361624199,1747647040704,-200.0,0.00013375,2]
[361624200,1747647040714,-293.32,0.000134,2]
[361624201,1747647040723,-150.0,0.000134,2]
[361624202,1747647040732,-162.76,0.000134,2]
[361624203,1747647040741,-150.0,0.000134,2]
[361624204,1747647040750,-453.11,0.000134,2]
[361624205,1747647040759,-301.62,0.000134,2]
[361624206,1747647040769,-392.22,0.000134,2]
[361624219,1747647041054,-353.24,0.000134,2]
[361624221,1747647041066,-455.86,0.000134,2]
[361624223,1747647041076,-162.71,0.000134,2]
[361624225,1747647041085,-150.3,0.000134,2]
[361624227,1747647041094,-353.24,0.000134,2]
[361624229,1747647041103,-150.0,0.000134,2]
[361624231,1747647041113,-453.11,0.000134,2]
[361624233,1747647041122,-150.0,0.000134,2]
[361624235,1747647041132,-150.0,0.000134,2]
[361624237,1747647041142,-150.0,0.000134,2]
[361624239,1747647041151,-150.3,0.000134,2]
[361624241,1747647041161,-162.76,0.000134,2]
[361624242,1747647041171,-353.24,0.000134,2]
[361624243,1747647041180,-150.0,0.000134,2]
[361624244,1747647041189,-150.3,0.000134,2]
[361624246,1747647041198,-150.0,0.000134,2]
[361624248,1747647041207,-150.0,0.000134,2]
[361624250,1747647041217,-353.24,0.000134,2]
[361624252,1747647041226,-500.0,0.00013452,2]
[361624254,1747647041235,-500.0,0.00013534,2]
[361624256,1747647041244,-270.7647,0.00013573,2]
[361624258,1747647041254,-160.64474673,0.00013598,2]
[361624260,1747647041263,-2875.86574448,0.00013598,2]
[361624262,1747647041272,-154.63338095,0.00013598,2]
[361624264,1747647041280,-163.07712506,0.00013598,2]
[361624266,1747647041290,-1968.0429,0.00013598,2]
[361624268,1747647041299,-316.0555,0.00013598,2]
[361624270,1747647041309,-3652.2038,0.00013598,2]
[361624272,1747647041318,-2500.0,0.00013598,2]
[361624274,1747647041327,-1000.0,0.00013598,2]
[361624276,1747647041337,-1929.0836,0.00013598,2]
[361624278,1747647041346,-805.14,0.000136,2]
[361624279,1747647041355,-150.0,0.000136,2]
[361624280,1747647041365,-150.0,0.000136,2]
[361624281,1747647041374,-150.0,0.000136,2]
[361624282,1747647041383,-353.24,0.000136,2]
[361624283,1747647041392,-453.11,0.000136,2]
[361624284,1747647041401,-150.3,0.000136,2]
[361624285,1747647041410,-150.0,0.000136,2]
[361624286,1747647041420,-162.76,0.000136,2]
[361624287,1747647041429,-2875.86574442,0.00013632,2]
[361624288,1747647041438,-391.8139154,0.00013638,2]
[361624289,1747647041447,-2026.783,0.00013638,2]
[361624290,1747647041457,-168.235,0.00013638,2]
[361624291,1747647041465,-2875.86574442,0.00013665,2]
[361624292,1747647041474,-500.0,0.00013673,2]
[361624293,1747647041484,-500.0,0.00013673,2]
[361624294,1747647041493,-500.0,0.00013673,2]
[361624295,1747647041502,-500.0,0.00013673,2]
[361624296,1747647041511,-500.0,0.00013673,2]
[361624297,1747647041520,-5969.69321055,0.00013688,2]
[361624298,1747647041530,-162.82,0.00013688,2]
[361624299,1747647041540,-155.0,0.0001369,2]
[361624300,1747647041549,-151.0,0.0001369,2]
[361624301,1747647041559,-151.0,0.0001369,2]
[361624302,1747647041569,-668.65185757,0.0001369,2]
[361624303,1747647041578,-668.65185757,0.0001369,2]
[361624304,1747647041588,-207.4,0.0001369,2]
[361624305,1747647041597,-151.0,0.0001369,2]
[361624306,1747647041607,-1199.20597015,0.0001369,2]
[361624307,1747647041616,-151.0,0.0001369,2]
[361624308,1747647041626,-151.0,0.0001369,2]
[361624309,1747647041637,-151.0,0.0001369,2]
[361624310,1747647041647,-151.0,0.0001369,2]
[361624311,1747647041656,-151.0,0.0001369,2]
[361624312,1747647041666,-151.0,0.0001369,2]
[361624313,1747647041675,-151.0,0.0001369,2]
[361624314,1747647041684,-151.0,0.0001369,2]
[361624315,1747647041694,-151.0,0.0001369,2]
[361624316,1747647041704,-151.0,0.0001369,2]
[361624317,1747647041713,-151.0,0.0001369,2]
[361624318,1747647041722,-151.0,0.0001369,2]
[361624319,1747647041732,-151.0,0.0001369,2]
[361624320,1747647041741,-151.0,0.0001369,2]
[361624321,1747647041751,-151.0,0.0001369,2]
[361624322,1747647041760,-151.0,0.0001369,2]
[361624323,1747647041770,-151.0,0.0001369,2]
[361624324,1747647041779,-151.0,0.0001369,2]
[361624325,1747647041789,-151.0,0.0001369,2]
[361624326,1747647041802,-226.19090686,0.0001369,2]
[361624327,1747647041811,-158.96779388,0.00013698,2]
[361624328,1747647041820,-155.756801,0.00013698,2]
[361624329,1747647041829,-420.0,0.00013698,2]
[361624330,1747647041838,-679.510169,0.00013698,2]
[361624331,1747647041847,-625.551452,0.00013698,2]
[361624332,1747647041857,-400.0,0.00013698,2]
[361624333,1747647041866,-420.0,0.00013698,2]
[361624334,1747647041875,-502.81,0.00013698,2]
[361624335,1747647041885,-420.0,0.00013698,2]
[361624336,1747647041893,-420.0,0.00013698,2]
[361624337,1747647041902,-420.0,0.00013698,2]
[361624338,1747647041911,-415.64544539,0.00013698,2]
[361624339,1747647041920,-400.0,0.00013698,2]
[361624340,1747647041929,-511.48232024,0.00013698,2]
[361624341,1747647041939,-420.0,0.00013698,2]
[361624342,1747647041948,-420.0,0.00013698,2]
[361624343,1747647041957,-596.86,0.00013698,2]
[361624344,1747647041967,-494.60378726,0.00013698,2]
[361624345,1747647041976,-420.0,0.00013698,2]
[361624346,1747647041985,-420.0,0.00013698,2]
[361624347,1747647041994,-436.65,0.00013698,2]
[361624348,1747647042003,-420.0,0.00013698,2]
[361624349,1747647042013,-400.0,0.00013698,2]
[361624350,1747647042022,-420.0,0.00013698,2]
[361624351,1747647042031,-400.82249255,0.00013698,2]
[361624352,1747647042040,-420.0,0.00013698,2]
[361624353,1747647042050,-420.0,0.00013698,2]
[361624354,1747647042060,-420.0,0.00013698,2]
[361624355,1747647042069,-420.0,0.00013698,2]
[361624356,1747647042078,-420.0,0.00013698,2]
[361624357,1747647042087,-516.85,0.00013698,2]
[361624358,1747647042096,-420.0,0.00013698,2]
[361624359,1747647042105,-250.0,0.00013698,2]
[361624360,1747647042115,-420.0,0.00013698,2]
[361624361,1747647042124,-420.0,0.00013698,2]
[361624362,1747647042134,-420.0,0.00013698,2]
[361624363,1747647042146,-420.0,0.00013698,2]
[361624364,1747647042155,-420.0,0.00013698,2]
[361624365,1747647042164,-420.0,0.00013698,2]
[361624366,1747647042173,-420.0,0.00013698,2]
[361624367,1747647042182,-492.29080574,0.00013698,2]
[361624368,1747647042191,-420.0,0.00013698,2]
[361624369,1747647042200,-420.0,0.00013698,2]
[361624370,1747647042209,-420.0,0.00013698,2]
[361624371,1747647042219,-420.0,0.00013698,2]
[361624372,1747647042228,-420.0,0.00013698,2]
[361624373,1747647042237,-420.0,0.00013698,2]
[361624374,1747647042247,-420.0,0.00013698,2]
[361624375,1747647042256,-420.0,0.00013698,2]
[361624376,1747647042265,-420.0,0.00013698,2]
[361624377,1747647042275,-420.0,0.00013698,2]
[361624378,1747647042284,-420.0,0.00013698,2]
[361624379,1747647042294,-420.0,0.00013698,2]
[361624380,1747647042303,-420.0,0.00013698,2]
[361624381,1747647042312,-400.0,0.00013698,2]
[361624382,1747647042321,-420.0,0.00013698,2]
[361624383,1747647042331,-400.0,0.00013698,2]
[361624384,1747647042340,-485.18616464,0.00013698,2]
[361624385,1747647042349,-400.0,0.00013698,2]
[361624386,1747647042358,-420.0,0.00013698,2]
[361624387,1747647042367,-420.0,0.00013698,2]
[361624388,1747647042376,-508.75,0.00013698,2]
[361624389,1747647042386,-420.0,0.00013698,2]
[361624390,1747647042395,-420.0,0.00013698,2]
[361624391,1747647042404,-420.0,0.00013698,2]
[361624392,1747647042414,-420.0,0.00013698,2]
[361624393,1747647042423,-420.0,0.00013698,2]
[361624394,1747647042432,-420.0,0.00013698,2]
[361624395,1747647042441,-420.0,0.00013698,2]
[361624396,1747647042452,-432.62,0.00013698,2]
[361624397,1747647042463,-420.0,0.00013698,2]
[361624398,1747647042472,-264.55882592,0.00013698,2]
[361624399,1747647042481,-420.0,0.00013698,2]
[361624400,1747647042491,-420.0,0.00013698,2]
[361624401,1747647042500,-420.0,0.00013698,2]
[361624402,1747647042509,-420.0,0.00013698,2]
[361624403,1747647042518,-400.0,0.00013698,2]
[361624404,1747647042528,-420.0,0.00013698,2]
[361624405,1747647042538,-420.0,0.00013698,2]
[361624406,1747647042547,-420.0,0.00013698,2]
[361624407,1747647042557,-400.0,0.00013698,2]
[361624408,1747647042567,-400.0,0.00013698,2]
[361624409,1747647042576,-420.0,0.00013698,2]
[361624410,1747647042585,-515.45776898,0.00013698,2]
[361624411,1747647042595,-420.0,0.00013698,2]
[361624412,1747647042604,-420.0,0.00013698,2]
[361624413,1747647042613,-701.74,0.00013698,2]
[361624414,1747647042622,-400.0,0.00013698,2]
[361624415,1747647042631,-420.0,0.00013698,2]
[361624416,1747647042641,-361.99276341,0.00013698,2]
[361624417,1747647042650,-383.13578141,0.00013698,2]
[361624418,1747647042660,-400.0,0.00013698,2]
[361624419,1747647042670,-420.0,0.00013698,2]
[361624420,1747647042680,-477.26,0.00013698,2]
[361624421,1747647042689,-420.0,0.00013698,2]
[361624422,1747647042699,-420.0,0.00013698,2]
[361624423,1747647042708,-528.35,0.00013698,2]
[361624424,1747647042717,-400.0,0.00013698,2]
[361624425,1747647042726,-400.0,0.00013698,2]
[361624426,1747647042735,-432.13,0.00013698,2]
[361624427,1747647042744,-420.0,0.00013698,2]
[361624428,1747647042753,-400.0,0.00013698,2]
[361624429,1747647042762,-420.0,0.00013698,2]
[361624430,1747647042772,-400.0,0.00013698,2]
[361624431,1747647042781,-420.0,0.00013698,2]
[361624432,1747647042790,-420.0,0.00013698,2]
[361624433,1747647042803,-427.6,0.00013698,2]
[361624434,1747647042813,-400.0,0.00013698,2]
[361624435,1747647042821,-380.0,0.00013698,2]
[361624436,1747647042831,-400.0,0.00013698,2]
[361624437,1747647042841,-420.0,0.00013698,2]
[361624438,1747647042850,-420.0,0.00013698,2]
[361624439,1747647042859,-400.0,0.00013698,2]
[361624440,1747647042868,-400.0,0.00013698,2]
[361624441,1747647042878,-420.0,0.00013698,2]
[361624442,1747647042887,-420.0,0.00013698,2]
[361624443,1747647042897,-420.0,0.00013698,2]
[361624444,1747647042906,-420.0,0.00013698,2]
[361624445,1747647042915,-420.0,0.00013698,2]
[361624446,1747647042925,-420.0,0.00013698,2]
[361624447,1747647042934,-400.0,0.00013698,2]
[361624448,1747647042943,-536.59,0.00013698,2]
[361624449,1747647042953,-691.77,0.00013698,2]
[361624450,1747647042963,-420.0,0.00013698,2]
[361624451,1747647042972,-400.0,0.00013698,2]
[361624452,1747647042981,-420.0,0.00013698,2]
[361624453,1747647042990,-400.0,0.00013698,2]
[361624454,1747647042998,-420.0,0.00013698,2]
[361624455,1747647043007,-420.0,0.00013698,2]